bitfinex/quotes_SOLUSD_20240727
["timestamp","ask_amount","ask_price","bid_price","bid_amount"]
[1722092062202,12.62,185.25,185.19,65.0]
[1722092062588,18.0182,185.25,185.19,5.3998]
[1722092062797,12.62,185.24,185.16,94.75460294]
[1722092062996,15.5333,185.27,185.18,5.4001]
[1722092062997,12.62,185.22,185.18,5.4001]
[1722092063614,5.3981,185.26,185.19,5.3996]
[1722092063919,12.62,185.23,185.19,5.3996]
[1722092065108,12.62,185.22,185.18,5.4001]
[1722092067630,12.62,185.22,185.16,82.13460294]
[1722092067811,12.62,185.22,185.17,45.0]
[1722092068127,12.62,185.22,185.17,50.4002]
[1722092068309,12.62,185.22,185.17,45.0]
[1722092068508,12.62,185.2,185.17,50.4003]
[1722092068717,12.62,185.2,185.17,45.0]
[1722092068922,12.62,185.2,185.16,82.13460294]
[1722092070498,12.62,185.19,185.16,82.13460294]
[1722092070711,12.62,185.18,185.16,82.13460294]
[1722092071123,18.0202,185.18,185.16,82.13460294]
[1722092071620,12.62,185.18,185.16,82.13460294]
[1722092071925,12.62,185.19,185.16,82.13460294]
[1722092072299,5.3991,185.22,185.16,87.53520294]
[1722092072506,12.62,185.23,185.16,95.83446173]
[1722092072701,12.62,185.22,185.16,83.21446173]
[1722092073029,12.62,185.22,185.17,45.0]
[1722092073528,12.62,185.22,185.18,5.4]
[1722092074336,12.62,185.23,185.19,50.3998]
[1722092074516,12.62,185.23,185.19,5.3998]
[1722092074924,16.60683351,185.27,185.2,5.3995]
[1722092074925,18.0181,185.25,185.2,5.3995]
[1722092075233,18.0181,185.25,185.19,5.3998]
[1722092075744,12.62,185.24,185.19,5.3998]
[1722092077137,12.62,185.25,185.21,5.3991]
[1722092077329,12.62,185.26,185.22,45.0]
[1722092077514,15.5333,185.27,185.23,5.3985]
[1722092077723,12.62,185.27,185.24,1.07954708]
[1722092077919,12.62,185.27,185.23,5.3986]
[1722092078334,5.397,185.29,185.23,5.3986]
[1722092078651,18.017,185.29,185.24,5.3983]
[1722092078829,18.017,185.29,185.25,45.0]
[1722092079225,15.2793,185.32,185.25,50.3981]
[1722092079435,12.62,185.3,185.27,5.3974]
[1722092079629,15.2793,185.32,185.25,45.0]
[1722092079630,12.62,185.32,185.28,5.397]
[1722092080221,5.3967,185.3,185.25,5.3979]
[1722092080425,18.0169,185.29,185.24,5.3983]
[1722092080723,18.0169,185.29,185.25,45.0]
[1722092082135,12.62,185.29,185.25,45.0]
[1722092082345,12.62,185.29,185.25,50.398]
[1722092082916,12.62,185.28,185.23,5.3984]
[1722092083143,12.62,185.28,185.22,1.0794153]
[1722092083144,12.62,185.28,185.24,5.3983]
[1722092083358,12.62,185.28,185.22,1.0794385]
[1722092083540,12.62,185.29,185.25,5.3978]
[1722092084049,12.62,185.28,185.24,5.3983]
[1722092084351,12.62,185.28,185.25,45.0]
[1722092084352,18.0173,185.28,185.25,45.0]
[1722092084523,12.62,185.28,185.24,45.0]
[1722092085241,12.62,185.28,185.24,50.3983]
[1722092086051,12.62,185.28,185.25,5.398]
[1722092087033,12.62,185.26,185.24,45.0]
[1722092087220,12.62,185.25,185.18,15.5261]
[1722092087423,12.62,185.25,185.19,20.0]
[1722092087620,12.62,185.25,185.22,5.3989]
[1722092087842,12.62,185.26,185.23,5.3985]
[1722092088223,12.62,185.26,185.22,5.3989]
[1722092088430,12.62,185.25,185.22,5.3989]
[1722092089362,18.0184,185.24,185.19,5.3998]
[1722092089564,12.62,185.24,185.16,94.75460294]
[1722092089765,12.62,185.24,185.17,12.62]
[1722092090249,12.62,185.24,185.19,5.3996]
[1722092090441,12.62,185.21,185.18,5.4]
[1722092090648,12.62,185.21,185.16,82.13460294]
[1722092090649,12.62,185.2,185.16,87.53530294]
[1722092090857,12.62,185.19,185.16,87.53530294]
[1722092091052,12.62,185.19,185.16,82.13460294]
[1722092091257,12.62,185.17,185.16,82.13460294]
[1722092091547,11.5589,185.22,185.16,82.13460294]
[1722092091745,12.62,185.18,185.16,82.13460294]
[1722092093260,18.0204,185.17,185.16,82.13460294]
[1722092093460,12.62,185.17,185.16,82.13460294]
[1722092094963,5.3998,185.19,185.16,82.13460294]
[1722092095772,12.62,185.18,185.16,82.13460294]
[1722092097056,5.3999,185.19,185.16,82.13460294]
[1722092097250,18.0204,185.17,185.16,82.13460294]
[1722092097652,38.0204,185.17,185.16,82.13460294]
[1722092101580,51.5215,185.17,185.16,82.13460294]
[1722092102376,44.3501,185.17,185.16,64.94750466]
[1722092102577,59.37825447,185.17,185.05,5.4037]
[1722092102753,12.62,185.09,185.06,5.4036]
[1722092102961,12.62,185.1,185.03,13.3920348]
[1722092103353,20.0,185.16,185.04,13.70051051]
[1722092103553,12.62,185.12,185.05,13.70039546]
[1722092103772,5.401,185.15,185.06,12.62]
[1722092103773,12.62,185.13,185.06,12.62]
[1722092103969,12.62,185.11,185.07,5.4033]
[1722092104168,5.4035,185.07,185.03,0.7720348]
[1722092104386,20.0,185.06,185.03,0.7720348]
[1722092104685,16.5702,185.13,185.05,5.4037]
[1722092104859,32.62,185.12,185.08,5.403]
[1722092105180,32.62,185.12,185.03,0.7720348]
[1722092105181,12.62,185.1,185.03,0.7720348]
[1722092105481,12.62,185.08,185.03,0.7720348]
[1722092105958,12.62,185.1,185.03,13.3920348]
[1722092106159,18.0227,185.1,185.03,0.7720348]
[1722092106359,12.62,185.1,185.04,5.4042]
[1722092106567,18.0222,185.11,185.04,5.404]
[1722092106767,12.62,185.11,185.07,5.4032]
[1722092107089,12.62,185.11,185.05,5.4036]
[1722092107410,12.62,185.11,185.04,12.62]
[1722092107575,12.62,185.11,185.06,5.4036]
[1722092107970,12.62,185.11,185.07,5.4032]
[1722092108279,12.62,185.11,185.05,50.4036]
[1722092108586,12.62,185.11,185.06,5.4035]
[1722092108781,12.62,185.1,185.05,50.4038]
[1722092109087,20.0,185.12,185.03,0.7720348]
[1722092109284,12.62,185.07,185.03,0.7720348]
[1722092109464,25.402,185.12,185.05,5.4038]
[1722092109781,12.62,185.1,185.05,5.4038]
[1722092109988,20.0,185.09,185.05,5.4038]
[1722092110761,12.62,185.1,185.03,13.3920348]
[1722092110962,12.62,185.09,185.04,50.4041]
[1722092111162,12.62,185.09,185.05,5.4039]
[1722092111789,12.62,185.08,185.03,6.1764348]
[1722092112373,12.62,185.09,185.04,5.4042]
[1722092112977,12.62,185.09,185.05,5.4038]
[1722092113268,12.62,185.09,185.04,5.4041]
[1722092113691,5.4034,185.07,185.03,0.7720348]
[1722092113989,18.0234,185.07,185.03,0.7720348]
[1722092115096,12.62,185.07,185.03,0.7720348]
[1722092115277,18.0239,185.06,185.03,0.7720348]
[1722092115483,12.62,185.05,185.03,0.7720348]
[1722092116089,18.0234,185.07,185.03,0.7720348]
[1722092116296,5.4037,185.06,185.03,0.7720348]
[1722092116495,6.4133,185.1,185.03,0.7720348]
[1722092116791,5.4017,185.13,185.07,5.4032]
[1722092116994,12.62,185.11,185.07,5.4033]
[1722092117200,12.62,185.11,185.06,5.4036]
[1722092117693,18.0221,185.11,185.04,33.215]
[1722092117899,18.0225,185.1,185.04,20.595]
[1722092118087,18.0225,185.1,184.96,1.08059192]
[1722092118088,20.0,184.89,184.86,16.24]
[1722092118396,63.1,185.05,184.8,6.1112]
[1722092118397,7.7039652,184.82,184.8,6.1112]
[1722092118595,5.4057,184.99,184.82,49.92388343]
[1722092118798,20.0,184.98,184.9,12.62]
[1722092118981,21.35187635,185.02,184.83,12.88480216]
[1722092119180,12.62,184.96,184.84,0.033634]
[1722092119497,12.62,184.91,184.84,0.033634]
[1722092119808,12.62,184.91,184.84,12.653634]
[1722092120179,40.0,185.03,184.84,0.033634]
[1722092120180,12.62,184.94,184.84,0.033634]
[1722092120400,12.62,184.91,184.84,12.62]
[1722092120596,12.62,184.91,184.8,7.19291799]
[1722092120791,12.62,184.91,184.83,12.62]
[1722092120993,12.62,184.91,184.84,0.033634]
[1722092121185,25.33,184.93,184.78,15.191]
[1722092121389,21.35246191,184.92,184.82,0.033634]
[1722092121593,21.35246191,184.92,184.78,16.27296953]
[1722092121594,20.0,184.92,184.79,0.033634]
[1722092121792,1.35226573,184.95,184.79,1.11544659]
[1722092121982,21.35226573,184.95,184.79,1.11544659]
[1722092122904,25.33,184.99,184.81,25.33]
[1722092123112,1.3520881,184.98,184.82,1.11530448]
[1722092123404,1.35197363,185.03,184.87,25.33]
[1722092123705,1.35156299,185.08,184.9,25.33]
[1722092123879,1.35143312,185.07,184.91,45.34]
[1722092124081,1.35143312,185.07,184.91,46.08113341]
[1722092124280,1.35143312,185.07,184.92,0.17]
[1722092124496,1.35143312,185.07,184.91,45.0]
[1722092124698,1.35143312,185.07,184.92,1.08110354]
[1722092125286,40.7817,185.1,184.92,1.08110354]
[1722092125287,1.35129892,185.06,184.92,1.08103914]
[1722092125488,1.35129892,185.06,184.93,1.25103321]
[1722092125688,1.35129151,185.09,184.93,1.08103321]
[1722092125898,1.35129151,185.09,184.92,0.17]
[1722092126207,1.35129151,185.09,184.91,46.08109766]
[1722092126409,5.4036,185.06,184.91,46.08109766]
[1722092126583,1.35142365,185.05,184.91,46.08109766]
[1722092126788,1.35142402,185.04,184.91,46.08109766]
[1722092126996,200.0,185.0,184.91,45.0]
[1722092129096,200.0,185.0,184.9,70.67]
[1722092129301,200.0,185.0,184.91,20.0]
[1722092129589,200.0,185.0,184.92,46.08113954]
[1722092129899,200.0,185.0,184.92,45.0]
[1722092131093,200.0,185.0,184.92,46.08112174]
[1722092131420,200.0,185.0,184.93,25.67]
[1722092131714,200.0,185.0,184.89,15.191]
[1722092131901,200.0,185.0,184.9,21.0812999]
[1722092132289,200.0,185.0,184.9,20.0]
[1722092132486,200.0,185.0,184.9,21.08120905]
[1722092132690,200.0,185.0,184.92,25.33]
[1722092133595,200.0,185.0,184.9,20.0]
[1722092133811,200.0,185.0,184.91,45.0]
[1722092134195,200.0,185.0,184.92,26.4110998]
[1722092134390,200.0,185.0,184.93,45.0]
[1722092134906,200.0,185.0,184.93,46.08107555]
[1722092135197,200.0,185.0,184.94,6.4448]
[1722092135411,200.0,185.0,184.95,45.0]
[1722092135612,1.35131918,184.99,184.83,15.9564]
[1722092135804,5.60457499,184.99,184.88,25.33]
[1722092135995,200.0,185.0,184.88,25.33]
[1722092136195,200.0,185.0,184.91,25.33]
[1722092136391,200.0,185.0,184.91,26.41108504]
[1722092136814,200.0,185.0,184.92,45.0]
[1722092137324,200.0,185.0,184.94,25.33]
[1722092137614,200.0,185.0,184.95,45.34]
[1722092137813,200.0,185.0,184.95,45.0]
[1722092138192,200.0,185.0,184.93,15.9564]
[1722092139996,200.0,185.0,184.89,6.4448]
[1722092139997,200.0,185.0,184.89,22.4012]
[1722092140204,200.0,185.0,184.9,45.0]
[1722092141200,200.0,185.0,184.93,12.65]
[1722092142204,200.0,185.0,184.94,12.65]
[1722092143604,1.35155465,184.99,184.84,22.4012]
[1722092143914,12.65,184.98,184.92,12.65]
[1722092144313,200.0,185.0,184.94,12.65]
[1722092144521,200.0,185.0,184.95,12.65]
[1722092146228,200.0,185.0,184.96,12.65]
[1722092146819,200.0,185.0,184.95,12.65]
[1722092147539,200.0,185.0,184.94,12.65]
[1722092148314,205.4054,185.0,184.93,12.65]
[1722092148516,205.4054,185.0,184.85,1.08129472]
[1722092148517,12.65,184.98,184.85,1.08129472]
[1722092148831,12.65,184.98,184.91,12.65]
[1722092149028,200.0,185.0,184.86,51.68129472]
[1722092149029,200.0,185.0,184.92,12.65]
[1722092149208,200.0,185.0,184.84,16.5006]
[1722092149209,18.0566,184.96,184.84,16.5006]
[1722092149413,18.0566,184.96,184.88,12.65]
[1722092150712,200.0,185.0,184.93,12.65]
[1722092151223,5.4062,184.98,184.92,12.65]
[1722092151730,6.75752442,184.99,184.92,12.65]
[1722092152231,1.35182442,184.99,184.93,12.65]
[1722092152413,200.0,185.0,184.96,12.65]
[1722092152613,200.0,185.0,184.97,12.65]
[1722092152825,200.0,185.0,184.96,12.65]
[1722092153420,200.0,185.0,184.95,12.65]
[1722092153629,200.0,185.0,184.96,12.65]
[1722092154415,200.0,185.0,184.86,1.08145924]
[1722092154608,200.0,185.0,184.94,12.65]
[1722092156911,200.0,185.0,184.97,12.65]
[1722092157108,200.0,185.0,184.99,12.65]
[1722092157742,200.0,185.0,184.99,57.65]
[1722092158721,200.0,185.0,184.99,12.65]
[1722092159137,200.0,185.0,184.99,57.65]
[1722092159531,200.0,185.0,184.99,57.82]
[1722092160319,200.0,185.0,184.99,57.99]
[1722092160738,200.0,185.0,184.99,45.0]
[1722092160947,200.0,185.0,184.99,57.65]
[1722092161119,200.0,185.0,184.99,45.0]
[1722092161319,200.0,185.0,184.99,57.65]
[1722092162522,200.0,185.0,184.99,12.65]
[1722092162937,200.0,185.0,184.93,1.081022]
[1722092163124,200.0,185.0,184.98,12.65]
[1722092164251,200.0,185.0,184.93,1.081022]
[1722092164455,200.0,185.0,184.92,22.6461]
[1722092164755,200.0,185.0,184.96,12.65]
[1722092165337,200.0,185.0,184.99,12.65]
[1722092166944,200.0,185.0,184.98,12.65]
[1722092167350,200.0,185.0,184.99,12.65]
[1722092169849,200.0,185.0,184.99,57.65]
[1722092171872,200.0,185.0,184.99,12.65]
[1722092172093,200.0,185.0,184.98,12.65]
[1722092172379,200.0,185.0,184.97,12.65]
[1722092172555,200.0,185.0,184.92,23.72714034]
[1722092172556,200.0,185.0,184.96,12.65]
[1722092173265,200.0,185.0,184.97,12.65]
[1722092176756,200.0,185.0,184.96,12.65]
[1722092176961,200.0,185.0,184.95,12.65]
[1722092177477,200.0,185.0,184.97,12.65]
[1722092179675,200.0,185.0,184.99,12.65]
[1722092182359,200.0,185.0,184.99,57.65]
[1722092184082,200.0,185.0,184.99,57.99]
[1722092185652,112.0773,185.0,184.99,80.741]
[1722092188659,111.5445,185.0,184.99,80.741]
[1722092189075,111.4557,185.0,184.99,80.741]
[1722092190885,111.4557,185.0,184.99,96.981]
[1722092191992,28.0852,185.14,184.99,96.981]
[1722092191993,15.4352,185.14,184.99,96.981]
[1722092192195,12.65,185.13,185.06,12.65]
[1722092192689,15.4352,185.14,185.08,12.65]
[1722092192990,28.0852,185.14,185.07,12.65]
[1722092193168,28.0852,185.14,185.06,12.65]
[1722092193480,19.0646,185.17,185.09,12.65]
[1722092195276,19.0646,185.17,185.07,1.42017394]
[1722092195482,12.65,185.16,185.09,12.65]
[1722092195673,6.4146,185.17,185.1,57.99]
[1722092195674,19.0646,185.17,185.1,57.99]
[1722092196387,16.4569,185.19,185.14,12.65]
[1722092196587,6.1212,185.22,185.1,45.34]
[1722092196588,18.7712,185.22,185.15,13.72997232]
[1722092196886,12.65,185.21,185.15,1.07997232]
[1722092197083,18.7712,185.22,185.15,13.72997232]
[1722092197461,18.7712,185.22,185.15,12.65]
[1722092197665,18.7712,185.22,185.15,13.72982387]
[1722092197879,12.65,185.22,185.15,13.72982387]
[1722092198086,16.4569,185.24,185.16,12.65]
[1722092198284,6.1212,185.26,185.18,12.65]
[1722092198285,12.65,185.25,185.18,12.65]
[1722092198886,12.65,185.25,185.19,1.07964968]
[1722092199491,18.7712,185.26,185.19,13.72964968]
[1722092199869,6.1212,185.26,185.2,12.65]
[1722092200094,12.65,185.27,185.2,12.65]
[1722092200673,12.65,185.25,185.17,45.34]
[1722092200874,12.65,185.24,185.17,12.99]
[1722092201093,12.65,185.24,185.15,15.6523]
[1722092201262,12.65,185.21,185.14,12.65]
[1722092201463,12.65,185.2,185.11,16.73217271]
[1722092201667,12.65,185.2,185.13,12.65]
[1722092202103,12.15,185.2,185.13,12.65]
[1722092202274,12.65,185.22,185.15,12.65]
[1722092202473,12.65,185.23,185.16,12.65]
[1722092202982,12.65,185.24,185.17,12.99]
[1722092203179,12.65,185.24,185.17,12.82]
[1722092203391,16.4569,185.25,185.13,1.07989306]
[1722092203392,12.65,185.23,185.16,12.65]
[1722092204265,12.65,185.2,185.13,12.65]
[1722092204671,12.65,185.21,185.14,13.72994136]
[1722092204969,12.65,185.21,185.14,12.65]
[1722092206081,12.65,185.21,185.13,0.34]
[1722092206274,12.65,185.21,185.13,12.65]
[1722092206901,12.65,185.21,185.14,12.99]
[1722092208899,12.65,185.2,185.14,0.34]
[1722092209597,12.65,185.21,185.14,12.99]
[1722092211099,12.65,185.22,185.15,12.65]
[1722092211467,12.65,185.23,185.16,12.65]
[1722092211666,16.4569,185.25,185.18,12.65]
[1722092211897,12.65,185.26,185.19,12.82]
[1722092212189,15.6076,185.29,185.19,12.65]
[1722092212395,12.65,185.26,185.19,12.65]
[1722092212587,12.65,185.26,185.2,1.07965184]
[1722092212796,12.65,185.26,185.19,12.65]
[1722092212985,12.65,185.26,185.18,12.65]
[1722092213184,12.65,185.25,185.19,0.34]
[1722092214297,12.65,185.24,185.19,0.34]
[1722092214476,12.65,185.24,185.18,0.34]
[1722092214680,12.65,185.24,185.17,12.65]
[1722092214681,12.65,185.23,185.16,12.65]
[1722092214886,12.65,185.23,185.17,0.34]
[1722092215276,12.65,185.24,185.17,12.99]
[1722092215569,12.65,185.25,185.18,12.65]
[1722092216187,12.65,185.25,185.18,13.72973238]
[1722092216700,12.65,185.25,185.18,12.65]
[1722092216998,5.3972,185.28,185.18,12.65]
[1722092217202,20.0,185.27,185.19,12.99]
[1722092217504,12.65,185.26,185.19,12.65]
[1722092218276,20.0,185.27,185.2,57.65]
[1722092218486,20.0,185.27,185.21,0.34]
[1722092219299,0.7720348,185.31,185.25,12.65]
[1722092219499,12.65,185.3,185.24,0.17]
[1722092219682,12.65,185.3,185.22,6.2908]
[1722092219683,12.65,185.28,185.22,6.2908]
[1722092219884,12.65,185.28,185.21,12.65]
[1722092220093,12.65,185.27,185.2,57.65]
[1722092220299,12.65,185.27,185.21,0.34]
[1722092220687,13.4220348,185.31,185.21,0.34]
[1722092220688,12.65,185.26,185.21,0.34]
[1722092221294,12.65,185.27,185.21,0.34]
[1722092221603,12.65,185.24,185.19,16.036]
[1722092221905,12.65,185.23,185.19,16.036]
[1722092222798,12.65,185.22,185.14,24.15135712]
[1722092222994,1.34964084,185.29,185.14,34.9768]
[1722092222995,12.65,185.21,185.14,34.9768]
[1722092224202,1.34964084,185.29,185.09,1.07988922]
[1722092224203,12.65,185.18,185.1,16.036]
[1722092224779,12.65,185.17,185.11,12.65]
[1722092224980,12.65,185.17,185.1,28.686]
[1722092225204,1.35018389,185.21,185.1,16.036]
[1722092225384,20.0,185.21,185.1,16.036]
[1722092225579,20.0,185.21,185.11,1.08003477]
[1722092225798,20.0,185.21,185.11,45.0]
[1722092225988,20.0,185.21,185.1,16.036]
[1722092225989,1.35005931,185.2,185.1,16.376]
[1722092226198,1.35005931,185.2,185.11,0.34]
[1722092226402,21.35016987,185.21,185.11,0.34]
[1722092226806,1.35017007,185.2,185.1,16.036]
[1722092227207,26.5228,185.21,185.11,0.34]
[1722092227796,27.87297011,185.21,185.11,0.34]
[1722092227995,26.5228,185.21,185.11,0.34]
[1722092228390,26.5228,185.21,185.11,45.34]
[1722092229008,27.87287814,185.21,185.11,45.34]
[1722092229195,6.74977814,185.2,185.1,16.036]
[1722092229399,20.0,185.19,185.1,16.036]
[1722092229997,21.35007814,185.2,185.1,16.036]
[1722092230202,21.35007814,185.2,185.05,23.43285461]
[1722092230403,21.35007814,185.2,185.05,24.18569089]
[1722092230794,70.26,185.19,185.05,22.3528]
[1722092230996,70.26,185.19,185.05,16.1052]
[1722092230997,5.4011,185.15,185.05,16.1052]
[1722092231201,1.35065331,185.14,185.05,16.1052]
[1722092231407,21.35065331,185.14,185.05,16.1052]
[1722092232120,26.75195331,185.14,185.05,16.1052]
[1722092232296,21.35065331,185.14,185.05,16.1052]
[1722092232815,25.26,185.1,185.01,25.0]
[1722092233114,6.75398442,185.09,185.01,25.0]
[1722092233288,5.65354372,185.16,185.02,22.3528]
[1722092233289,1.35117071,185.08,185.02,22.3528]
[1722092233491,5.65354372,185.16,185.03,26.3407897]
[1722092233718,20.0,185.15,185.03,26.3407897]
[1722092233890,20.0,185.15,185.02,22.3528]
[1722092234097,21.35070714,185.15,185.02,22.3528]
[1722092234294,20.0,185.14,185.02,22.3528]
[1722092234498,5.4016,185.13,185.02,22.3528]
[1722092234690,1.3508534,185.12,185.02,22.3528]
[1722092234892,21.3508534,185.12,185.02,22.3528]
[1722092235098,20.0,185.14,185.02,23.43346849]
[1722092235506,20.0,185.17,185.03,0.34]
[1722092235705,5.3998,185.19,185.04,1.08034789]
[1722092235908,5.3998,185.19,185.05,1.42028477]
[1722092236097,24.31341086,185.21,185.05,1.42028477]
[1722092236299,1.35021708,185.2,185.05,21.42028477]
[1722092236499,5.3998,185.19,185.06,45.0]
[1722092236695,5.3998,185.19,185.07,20.34]
[1722092236696,1.35032154,185.18,185.07,20.34]
[1722092236918,1.35032154,185.18,185.08,45.0]
[1722092237223,21.35032154,185.18,185.09,0.34]
[1722092237415,1.35032154,185.18,185.09,0.34]
[1722092237606,21.35032154,185.18,185.09,0.34]
[1722092238311,21.35032124,185.17,185.09,0.34]
[1722092238495,1.35032124,185.17,185.09,0.34]
[1722092238695,21.35032124,185.19,185.09,0.34]
[1722092239100,20.0,185.2,185.09,0.34]
[1722092239324,26.74991751,185.2,185.09,0.34]
[1722092239506,21.35032104,185.2,185.07,20.0]
[1722092239831,5.4007,185.16,185.06,0.34]
[1722092240021,21.35057094,185.15,185.05,45.34]
[1722092240327,20.0,185.15,185.05,0.34]
[1722092240512,20.0,185.15,185.02,22.3528]
[1722092240513,46.35079412,185.14,185.02,22.3528]
[1722092240712,20.0,185.13,185.02,22.3528]
[1722092240917,21.35080085,185.13,185.02,22.3528]
[1722092241105,20.0,185.13,185.02,22.3528]
[1722092241826,45.0,185.12,185.02,16.1052]
[1722092242123,5.4025,185.1,185.02,16.1052]
[1722092242426,1.35100744,185.09,185.02,16.1052]
[1722092243210,1.35097585,185.1,185.02,16.1052]
[1722092243415,1.35097574,185.1,185.02,16.1052]
[1722092243902,20.0,185.11,185.02,16.1052]
[1722092244103,1.35085697,185.1,185.02,16.1052]
[1722092244606,5.4022,185.11,185.02,16.1052]
[1722092244802,20.0,185.1,185.02,16.1052]
[1722092245021,25.4024,185.1,185.02,16.1052]
[1722092245322,20.0,185.1,185.02,16.1052]
[1722092246007,21.35097533,185.12,185.02,16.1052]
[1722092246207,5.4025,185.1,185.02,16.1052]
[1722092246818,21.35104565,185.09,185.02,16.1052]
[1722092248023,20.0,185.09,185.02,16.1052]
[1722092248402,20.0,185.1,185.02,16.1052]
[1722092248608,1.3510933,185.09,185.02,16.1052]
[1722092248901,20.0,185.1,185.02,16.1052]
[1722092249722,21.35107033,185.1,185.02,16.1052]
[1722092249929,26.75367033,185.1,185.02,16.1052]
[1722092250623,21.35107033,185.1,185.02,16.1052]
[1722092251524,20.0,185.1,185.02,16.1052]
[1722092251724,25.26,185.13,185.02,16.1052]
[1722092251725,20.0,185.11,185.02,16.1052]
[1722092251929,20.0,185.12,185.03,0.34]
[1722092252124,1.35076452,185.15,185.03,0.34]
[1722092252327,5.4009,185.16,185.03,65.34]
[1722092252639,5.4009,185.16,185.04,1.08048751]
[1722092252836,5.4009,185.16,185.03,65.34]
[1722092252837,25.26,185.18,185.05,7.64305237]
[1722092253020,5.4005,185.17,185.06,45.0]
[1722092253207,5.4005,185.17,185.07,0.17]
[1722092253526,5.4002,185.18,185.07,0.17]
[1722092254742,20.0,185.17,185.07,0.34]
[1722092255235,5.3999,185.19,185.07,20.34]
[1722092255409,1.35032176,185.2,185.09,15.1837]
[1722092255613,1.35032176,185.2,185.1,0.34]
[1722092255915,6.75002176,185.2,185.1,0.34]
[1722092256115,1.35022702,185.24,185.1,0.34]
[1722092256329,1.35016658,185.23,185.1,45.34]
[1722092256538,15.9877,185.25,185.11,7.30268395]
[1722092256740,5.3986,185.24,185.12,45.34]
[1722092257035,5.3986,185.24,185.13,1.08004629]
[1722092257238,5.3986,185.24,185.14,0.17]
[1722092257615,5.3986,185.24,185.14,1.24996838]
[1722092257927,15.9877,185.29,185.14,1.24996838]
[1722092257928,8.43664142,185.31,185.15,15.3537]
[1722092258112,7.51854142,185.31,185.16,66.24972632]
[1722092258307,5.3966,185.3,185.18,6.2226]
[1722092258544,6.1683348,185.31,185.19,66.4195697]
[1722092259123,6.1683348,185.31,185.19,65.34]
[1722092259331,5.397,185.29,185.19,65.34]
[1722092259641,1.34951258,185.28,185.19,20.17]
[1722092259939,1.34951258,185.28,185.19,20.0]
[1722092260230,1.34962127,185.3,185.19,20.0]
[1722092261133,5.3969,185.29,185.19,20.0]
[1722092261941,26.0320348,185.31,185.19,20.0]
[1722092262152,26.0320348,185.31,185.2,46.4197546]
[1722092262321,26.0320348,185.31,185.21,21.07953254]
[1722092262322,20.0,185.3,185.21,21.07953254]
[1722092262523,0.7720348,185.31,185.22,15.5237]
[1722092262838,0.7720348,185.31,185.23,1.07947257]
[1722092263015,0.7720348,185.31,185.24,1.07945994]
[1722092263213,0.7720348,185.31,185.22,15.5237]
[1722092265250,20.7720348,185.31,185.22,15.5237]
[1722092265542,0.7720348,185.31,185.22,15.5237]
[1722092266331,0.7720348,185.31,185.23,1.07946169]
[1722092266528,0.7720348,185.31,185.24,0.17]